bitfinex-derivatives/quotes_BTCF0:USTF0_20241008
["timestamp","ask_amount","ask_price","bid_price","bid_amount"]
[1728348201285,0.69167259,62557.0,62556.0,0.19994]
[1728348201890,0.33087259,62557.0,62556.0,0.19994]
[1728348202485,0.058,62557.0,62556.0,0.19994]
[1728348202985,0.002,62557.0,62556.0,0.19994]
[1728348203187,0.27487259,62557.0,62553.0,0.079943]
[1728348203493,0.079942,62554.0,62553.0,0.079943]
[1728348203879,0.35281459,62554.0,62553.0,0.079943]
[1728348204280,0.27287259,62554.0,62553.0,0.079943]
[1728348205386,0.33077259,62554.0,62553.0,0.079943]
[1728348206080,0.0579,62554.0,62553.0,0.079943]
[1728348206578,0.0611,62560.0,62559.0,0.079936]
[1728348206791,0.0611,62560.0,62559.0,0.199936]
[1728348207984,0.0631,62560.0,62559.0,0.199936]
[1728348208493,0.0631,62560.0,62559.0,0.259936]
[1728348209187,0.0681,62560.0,62559.0,0.259936]
[1728348213220,0.0681,62560.0,62559.0,0.28926607]
[1728348221924,0.007,62560.0,62559.0,0.28926607]
[1728348227518,0.007,62560.0,62559.0,0.10926607]
[1728348228421,0.007,62560.0,62559.0,0.079936]
[1728348230425,0.007,62560.0,62559.0,0.199936]
[1728348232428,0.0891525,62560.0,62559.0,0.199936]
[1728348232624,0.36202509,62560.0,62559.0,0.199936]
[1728348234326,0.27987259,62560.0,62559.0,0.199936]
[1728348235923,0.007,62560.0,62559.0,0.199936]
[1728348236931,0.007,62560.0,62559.0,0.260636]
[1728348239635,0.007,62560.0,62559.0,0.740196]
[1728348239834,0.079915,62576.0,62559.0,0.740196]
[1728348239835,0.00239747,62578.0,62563.0,0.199931]
[1728348240041,0.0608,62579.0,62578.0,0.079912]
[1728348240238,0.33367259,62579.0,62578.0,0.079912]
[1728348240539,0.33367259,62579.0,62578.0,0.05422672]
[1728348241336,0.34767259,62579.0,62578.0,0.05422672]
[1728348241739,0.34167259,62579.0,62578.0,0.05422672]
[1728348242133,0.35167259,62579.0,62578.0,0.05422672]
[1728348243732,0.35867259,62579.0,62578.0,0.05422672]
[1728348245038,0.35867259,62579.0,62578.0,0.08268563]
[1728348246026,0.025,62579.0,62578.0,0.08268563]
[1728348247539,0.1071525,62579.0,62577.0,0.12]
[1728348247738,0.0821525,62578.0,62577.0,0.199913]
[1728348248330,0.0821525,62578.0,62577.0,0.10855042]
[1728348248534,0.0821525,62578.0,62577.0,0.22855042]
[1728348249639,0.0911525,62578.0,62577.0,0.22855042]
[1728348250036,0.0971525,62578.0,62577.0,0.22855042]
[1728348250437,0.0971525,62578.0,62577.0,0.14863742]
[1728348252044,0.0971525,62578.0,62577.0,0.22855042]
[1728348253541,0.0971525,62578.0,62577.0,0.15571338]
[1728348254343,0.015,62578.0,62577.0,0.15571338]
[1728348255445,0.015,62578.0,62577.0,0.18447319]
[1728348255746,0.015,62578.0,62577.0,0.10867281]
[1728348255946,0.015,62578.0,62577.0,0.22867281]
[1728348258648,0.3608,62583.0,62582.0,0.079907]
[1728348258943,0.3608,62591.0,62590.0,0.079896]
[1728348259145,0.3608,62591.0,62590.0,0.199896]
[1728348259146,0.63367259,62591.0,62590.0,0.199896]
[1728348259845,0.27287259,62591.0,62590.0,0.199896]
[1728348260346,0.27887259,62591.0,62590.0,0.199896]
[1728348260739,0.27387259,62591.0,62590.0,0.199896]
[1728348261246,0.001,62591.0,62590.0,0.199896]
[1728348261840,0.005,62591.0,62590.0,0.199896]
[1728348262441,0.0871525,62591.0,62590.0,0.12]
[1728348262849,0.0871525,62591.0,62590.0,0.199896]
[1728348263051,0.005,62591.0,62590.0,0.199896]
[1728348263850,0.005,62591.0,62590.0,0.22835305]
[1728348264844,0.18579624,62591.0,62590.0,0.22835305]
[1728348265550,0.18579624,62591.0,62590.0,0.09952275]
[1728348265852,0.18579624,62591.0,62590.0,0.21952275]
[1728348266051,0.0871525,62591.0,62590.0,0.58032275]
[1728348268255,0.18579624,62591.0,62590.0,0.58032275]
[1728348268557,0.18579624,62591.0,62590.0,0.45255948]
[1728348268954,0.18579624,62591.0,62590.0,0.09175948]
[1728348269167,0.18579624,62591.0,62590.0,0.45255948]
[1728348269652,0.005,62591.0,62590.0,0.45255948]
[1728348269958,0.005,62591.0,62590.0,0.53245548]
[1728348270449,0.005,62591.0,62590.0,0.56129998]
[1728348274057,0.0582,62597.0,62590.0,0.56129998]
[1728348274264,0.0582,62597.0,62596.0,0.199889]
[1728348274569,0.0582,62597.0,62596.0,0.560689]
[1728348274855,0.0582,62597.0,62596.0,0.440689]
[1728348275061,0.0582,62597.0,62596.0,0.199889]
[1728348275358,0.0682,62597.0,62596.0,0.199889]
[1728348275547,0.0752,62597.0,62596.0,0.200889]
[1728348277561,0.0652,62597.0,62596.0,0.200889]
[1728348277760,0.0742,62597.0,62596.0,0.201889]
[1728348280460,0.0742,62597.0,62596.0,0.002]
[1728348280461,0.34707259,62597.0,62596.0,0.002]
[1728348280651,1.62624059,62597.0,62588.0,0.0037]
[1728348280859,0.54696059,62597.0,62587.0,0.3608]
[1728348281057,0.54696059,62597.0,62590.0,0.12]
[1728348281257,0.079895,62592.0,62590.0,0.12]
[1728348281662,0.35276759,62592.0,62590.0,0.12]
[1728348282767,0.35776759,62592.0,62590.0,0.121]
[1728348283358,0.35776759,62592.0,62590.0,0.12]
[1728348283359,0.35976759,62592.0,62590.0,0.12]
[1728348283562,0.27987259,62592.0,62590.0,0.12]
[1728348283761,0.27987259,62592.0,62591.0,0.079895]
[1728348284564,0.46066883,62592.0,62590.0,0.12]
[1728348284763,0.18079624,62591.0,62590.0,0.199896]
[1728348285164,0.45366883,62591.0,62590.0,0.199896]
[1728348285655,0.35502509,62591.0,62590.0,0.12]
[1728348286256,0.35602509,62591.0,62590.0,0.12]
[1728348286468,0.36002509,62591.0,62590.0,0.12]
[1728348286859,0.45866883,62591.0,62590.0,0.12]
[1728348287056,0.45866883,62591.0,62582.0,0.0037]
[1728348287057,0.48002509,62591.0,62582.0,0.0037]
[1728348287274,0.079905,62584.0,62581.0,0.079907]
[1728348287466,0.34969624,62583.0,62578.0,0.11306634]
[1728348287766,0.18079624,62582.0,62579.0,0.07991]
[1728348288063,0.18079624,62581.0,62580.0,0.079909]
[1728348288469,0.45366883,62581.0,62580.0,0.079909]
[1728348289056,0.45366883,62581.0,62580.0,0.199909]
[1728348289761,0.45466883,62581.0,62580.0,0.207909]
[1728348290463,0.45466883,62581.0,62577.0,0.32586851]
[1728348290672,0.27387259,62581.0,62580.0,0.12]
[1728348290968,0.27387259,62581.0,62580.0,0.205909]
[1728348290969,0.45566017,62581.0,62580.0,0.205909]
[1728348291565,0.45366017,62581.0,62580.0,0.199909]
[1728348291766,0.45566017,62581.0,62580.0,0.199909]
[1728348292166,0.45466017,62581.0,62580.0,0.199909]
[1728348292472,0.27487259,62581.0,62580.0,0.213909]
[1728348300189,0.002,62581.0,62580.0,0.213909]
[1728348303687,0.0037,62588.0,62587.0,0.0799]
[1728348303991,0.3608,62601.0,62600.0,0.079884]
[1728348304189,0.63367259,62601.0,62600.0,0.199884]
[1728348304385,0.1163,62610.0,62604.0,0.079877]
[1728348304689,0.38917259,62610.0,62609.0,0.12]
[1728348306187,0.40317259,62610.0,62609.0,0.12]
[1728348306387,0.40317259,62610.0,62608.0,0.18]
[1728348306800,0.41717259,62610.0,62608.0,0.18]
[1728348307386,0.41717259,62610.0,62608.0,0.181]
[1728348307694,0.40917259,62610.0,62608.0,0.182]
[1728348308602,0.29287259,62610.0,62609.0,0.079872]
[1728348309397,0.02,62610.0,62609.0,0.079872]
[1728348309783,0.006,62610.0,62609.0,0.080872]
[1728348309989,0.02,62610.0,62609.0,0.080872]
[1728348310598,0.013,62610.0,62609.0,0.001]
[1728348310798,0.015,62610.0,62609.0,0.081872]
[1728348311309,0.49998925,62625.0,62610.0,0.47916]
[1728348311495,0.41206184,62625.0,62624.0,0.259853]
[1728348311690,0.00239554,62628.0,62624.0,0.18]
[1728348311893,0.27526813,62628.0,62627.0,0.440649]
[1728348312597,0.27526813,62628.0,62623.0,0.079854]
[1728348312798,0.079854,62624.0,62618.0,0.07986]
[1728348313104,0.079863,62616.0,62615.0,0.3608]
[1728348313401,0.079866,62615.0,62612.0,0.18]
[1728348313600,0.3608,62616.0,62611.0,0.0023952]
[1728348313601,0.079866,62614.0,62611.0,0.0023952]
[1728348313999,0.2921881,62613.0,62607.0,0.079875]
[1728348314305,0.2921881,62613.0,62611.0,0.18]
[1728348314498,0.56506069,62613.0,62611.0,0.18]
[1728348314698,0.1807881,62613.0,62612.0,0.079869]
[1728348316794,0.1807881,62613.0,62612.0,0.085869]
[1728348316996,0.1807881,62613.0,62612.0,0.092869]
[1728348317296,0.45366069,62613.0,62612.0,0.272869]
[1728348317495,0.45366069,62613.0,62612.0,0.013]
[1728348317696,0.53353569,62613.0,62612.0,0.013]
[1728348317996,0.45366069,62613.0,62612.0,0.092876]
[1728348319001,0.27287259,62613.0,62612.0,0.092876]
[1728348319998,0.27287259,62613.0,62612.0,0.013]
[1728348320506,0.35274759,62613.0,62612.0,0.013]
[1728348320800,0.35274759,62613.0,62605.0,0.079885]
[1728348321003,0.079889,62603.0,62597.0,0.02879652]
[1728348321207,0.3608,62598.0,62596.0,0.079897]
[1728348321404,0.0539,62597.0,62596.0,0.079897]
[1728348321605,0.0539,62597.0,62596.0,0.259897]
[1728348321816,0.32677259,62597.0,62596.0,0.259897]
[1728348322706,0.32677259,62597.0,62596.0,0.271897]
[1728348323496,0.32677259,62597.0,62596.0,0.279897]
[1728348323692,0.32677259,62597.0,62596.0,0.2]
[1728348323997,0.32677259,62597.0,62596.0,0.279897]
[1728348324495,0.23389332,62597.0,62596.0,0.32239105]
[1728348324699,0.001,62597.0,62596.0,0.32239105]
[1728348324898,0.001,62597.0,62596.0,0.274897]
[1728348325098,0.001,62597.0,62596.0,0.276897]
[1728348325305,0.001,62597.0,62596.0,0.31625847]
[1728348325510,0.001,62597.0,62596.0,0.275897]
[1728348325511,0.002,62597.0,62596.0,0.275897]
[1728348325699,0.002,62597.0,62596.0,0.274897]
[1728348326203,0.001,62597.0,62596.0,0.267897]
[1728348326405,0.001,62597.0,62596.0,0.270897]
[1728348327206,0.001,62597.0,62596.0,0.265897]
[1728348327404,0.001,62597.0,62596.0,0.270897]
[1728348327596,0.3618,62597.0,62596.0,0.270897]
[1728348327801,0.3618,62597.0,62596.0,0.265897]
[1728348328001,0.3628,62597.0,62596.0,0.273897]
[1728348329715,0.3628,62597.0,62596.0,0.39567881]
[1728348335723,0.59569332,62597.0,62596.0,0.39567881]
[1728348336216,0.23489332,62597.0,62596.0,0.39567881]
[1728348337607,0.23489332,62597.0,62596.0,0.273897]
[1728348339906,0.23489332,62597.0,62596.0,0.194]
[1728348340213,0.29119332,62597.0,62596.0,0.194]
[1728348340916,0.37108932,62597.0,62596.0,0.194]
[1728348341217,0.37108932,62597.0,62596.0,0.014]
[1728348341812,0.079906,62589.0,62588.0,0.0037]
[1728348342006,0.079906,62589.0,62584.0,0.259911]
[1728348342007,0.440706,62589.0,62584.0,0.259911]
[1728348342917,0.67359932,62589.0,62588.0,0.014]
[1728348343112,0.67459932,62589.0,62588.0,0.014]
[1728348344224,0.67559932,62589.0,62588.0,0.022]
[1728348344718,0.56363046,62589.0,62588.0,0.29206499]
[1728348345111,0.61783046,62589.0,62588.0,0.27806499]
[1728348345310,0.61883046,62589.0,62588.0,0.27806499]
[1728348346113,0.61883046,62589.0,62588.0,0.28806499]
[1728348347522,0.61883046,62589.0,62588.0,0.28806472]
[1728348349413,0.53892446,62589.0,62588.0,0.36797172]
[1728348351522,0.61883046,62589.0,62588.0,0.36797172]
[1728348352918,0.61883046,62589.0,62588.0,0.29869232]
[1728348354437,0.61883046,62589.0,62588.0,0.097907]
[1728348354725,0.61883046,62589.0,62588.0,0.29869449]
[1728348356721,0.36999932,62589.0,62588.0,0.29869449]
[1728348357322,0.36999932,62589.0,62588.0,0.21971282]
[1728348357524,0.36999932,62589.0,62588.0,0.13980582]
[1728348357832,0.36999932,62589.0,62588.0,0.13980368]
[1728348358828,0.36999932,62589.0,62588.0,0.2188188]
[1728348359230,0.36999932,62589.0,62588.0,0.2987258]
[1728348359824,0.36999932,62589.0,62588.0,0.097907]
[1728348361323,0.36999932,62589.0,62588.0,0.018]
[1728348362922,0.29009332,62589.0,62588.0,0.097907]
[1728348367532,0.36999932,62589.0,62588.0,0.097907]
[1728348367732,0.36999932,62589.0,62588.0,0.21971531]
[1728348369537,0.3300096,62589.0,62588.0,0.21971531]
[1728348369738,0.6908096,62589.0,62588.0,0.21971531]
[1728348371639,0.6908096,62589.0,62588.0,0.21971571]
[1728348372144,0.6908096,62589.0,62588.0,0.31449371]
[1728348374838,0.6908096,62589.0,62588.0,0.097907]
[1728348378643,0.3300096,62589.0,62588.0,0.097907]
[1728348379231,0.6908096,62589.0,62588.0,0.097907]
[1728348379840,0.3300096,62589.0,62588.0,0.097907]
[1728348380140,0.6908096,62589.0,62588.0,0.097907]
[1728348380840,0.6908096,62589.0,62580.0,0.0037]
[1728348380841,1.8102236,62589.0,62580.0,0.0037]
[1728348381037,1.8102236,62589.0,62572.0,0.3252]
[1728348381038,0.4808,62581.0,62572.0,0.3252]
[1728348381232,0.079926,62573.0,62569.0,0.079931]
[1728348381741,0.1780036,62573.0,62572.0,0.12]
[1728348382732,0.1780036,62573.0,62572.0,0.2418287]
[1728348383540,0.1790036,62573.0,62572.0,0.32101166]
[1728348383734,0.2589296,62573.0,62572.0,0.2418287]
[1728348383935,0.2589296,62573.0,62572.0,0.1218287]
[1728348384131,0.079928,62572.0,62571.0,0.07919106]
[1728348384328,0.079929,62571.0,62570.0,0.07919106]
[1728348384733,0.079929,62571.0,62570.0,0.20102873]
[1728348384734,0.2579326,62571.0,62570.0,0.20102873]
[1728348384928,0.2579326,62571.0,62570.0,0.07919106]
[1728348385129,0.2579326,62571.0,62570.0,0.20176711]
[1728348385130,0.1780036,62571.0,62570.0,0.20176711]
[1728348385331,0.002,62573.0,62572.0,0.079928]
[1728348385530,0.002,62573.0,62572.0,0.32176511]
[1728348385734,0.001,62573.0,62572.0,0.32176511]
[1728348386036,0.001,62573.0,62572.0,0.37936511]
[1728348386238,0.3608,62575.0,62574.0,0.079925]
[1728348386444,0.3608,62575.0,62574.0,0.46088381]
[1728348386744,0.3608,62575.0,62574.0,0.38174918]
[1728348387434,0.3618,62575.0,62574.0,0.38174918]
[1728348387945,0.3628,62575.0,62574.0,0.38174918]
[1728348388951,0.3628,62575.0,62574.0,0.41058708]
[1728348389852,0.3628,62575.0,62574.0,0.2887629]
[1728348394154,0.002,62575.0,62574.0,0.1087629]
[1728348397955,0.002,62575.0,62574.0,0.23058674]
[1728348401550,0.002,62575.0,62574.0,0.15066052]
[1728348401752,0.081924,62575.0,62574.0,0.12182262]
[1728348402061,0.081924,62575.0,62572.0,0.07930944]
[1728348402062,0.079926,62574.0,62572.0,0.07930944]
[1728348402260,0.3608,62573.0,62571.0,0.07930944]
[1728348402451,0.440727,62573.0,62571.0,0.07930944]
[1728348402653,0.6187306,62573.0,62572.0,0.20114445]
[1728348403055,0.2579306,62573.0,62572.0,0.20114445]
[1728348403250,0.2579306,62573.0,62571.0,0.07930944]
[1728348403560,0.2589306,62573.0,62572.0,0.07930944]
[1728348403755,0.2599306,62573.0,62572.0,0.20114315]
[1728348404155,0.6207306,62573.0,62572.0,0.20114315]
[1728348404353,0.079928,62572.0,62571.0,0.08430944]
[1728348404552,0.079928,62572.0,62571.0,0.005]
[1728348404752,0.2579316,62572.0,62571.0,0.005]
[1728348404961,0.1780036,62572.0,62560.0,0.079942]
[1728348405164,0.079934,62568.0,62562.0,0.38995502]
[1728348405461,0.07993,62570.0,62565.0,0.079936]
[1728348405877,0.079932,62569.0,62565.0,0.079936]
[1728348406266,0.2579356,62569.0,62565.0,0.079936]
[1728348406457,0.001,62568.0,62565.0,0.079936]
[1728348406658,0.001,62568.0,62565.0,0.084936]
[1728348406857,0.1790036,62568.0,62565.0,0.084936]
[1728348407054,0.1780036,62568.0,62565.0,0.084936]
[1728348408063,0.1780036,62568.0,62562.0,0.57171502]
[1728348408258,0.1780036,62568.0,62565.0,0.005]
[1728348408460,0.1780036,62568.0,62565.0,0.125]
[1728348408963,0.1790036,62568.0,62565.0,0.125]
[1728348409267,0.1800036,62568.0,62565.0,0.125]
[1728348410554,0.1800036,62568.0,62565.0,0.204936]
[1728348410955,0.1800036,62568.0,62565.0,0.125]
[1728348411162,0.1800036,62568.0,62566.0,0.079935]
[1728348411359,0.1800036,62568.0,62565.0,0.125]
[1728348412164,0.1790036,62568.0,62565.0,0.12]
[1728348412372,0.079941,62562.0,62559.0,0.0037]
[1728348412571,0.1136,62561.0,62557.0,0.079947]
[1728348412960,0.18759134,62561.0,62560.0,0.12665082]
[1728348413273,0.18759134,62561.0,62560.0,0.44495236]
[1728348414258,0.18759134,62561.0,62560.0,0.35011479]
[1728348414568,0.1780036,62567.0,62566.0,0.079935]
[1728348414773,0.1780036,62567.0,62566.0,0.20178934]
[1728348415868,0.12200222,62567.0,62566.0,0.20178934]
[1728348418767,0.12200222,62567.0,62566.0,0.23127045]
[1728348418967,0.12200222,62567.0,62566.0,0.15133545]
[1728348419363,0.12200222,62567.0,62566.0,0.12185434]
[1728348419665,0.48280222,62567.0,62566.0,0.21704509]
[1728348419869,0.48280222,62567.0,62566.0,0.2011834]
[1728348420576,0.56273622,62567.0,62566.0,0.12185087]
[1728348420774,0.56273622,62567.0,62566.0,0.12185088]
[1728348420974,1.04221622,62567.0,62566.0,0.12185088]
[1728348421272,1.56228222,62567.0,62562.0,0.07934877]
[1728348421476,0.079942,62561.0,62560.0,0.07934877]
[1728348421662,0.079944,62559.0,62557.0,0.07934877]
[1728348421858,0.620745,62558.0,62557.0,0.07934877]
[1728348422057,0.5408,62558.0,62555.0,0.07934877]
[1728348422262,0.079949,62555.0,62554.0,0.07934877]
[1728348422566,0.18,62556.0,62553.0,0.07934877]
[1728348422766,0.18,62556.0,62550.0,0.17514675]
[1728348422767,0.140149,62555.0,62554.0,0.07934877]
[1728348423275,0.18220222,62555.0,62554.0,0.15925466]
[1728348423871,0.18220222,62555.0,62554.0,0.079951]
[1728348424070,0.18220222,62555.0,62554.0,0.15925466]
[1728348424270,0.18220222,62555.0,62554.0,0.079951]
[1728348424570,0.18320222,62555.0,62554.0,0.079951]
[1728348424879,0.18220222,62555.0,62554.0,0.079951]
[1728348425065,0.079951,62554.0,62553.0,0.07930366]
[1728348425272,0.36320222,62555.0,62551.0,0.07930366]
[1728348425472,0.259954,62551.0,62550.0,0.07930366]
[1728348425679,0.079956,62550.0,62548.0,0.07930366]
[1728348425978,0.30200222,62551.0,62548.0,0.07930366]
[1728348426163,0.136957,62549.0,62548.0,0.07930366]
[1728348426476,0.136957,62549.0,62547.0,0.07930366]
[1728348426668,0.25895922,62549.0,62547.0,0.07930366]
[1728348426869,0.25895922,62549.0,62546.0,0.00239793]
[1728348426870,0.17900222,62549.0,62546.0,0.00239793]
[1728348427069,0.259959,62547.0,62546.0,0.00239793]
[1728348427279,0.079966,62542.0,62541.0,0.0037]
[1728348427572,0.079971,62538.0,62536.0,0.07927688]
[1728348427773,0.079971,62538.0,62535.0,0.07927688]
[1728348427979,0.079971,62538.0,62534.0,0.3608]
[1728348427980,0.12200222,62538.0,62534.0,0.079975]
[1728348428275,0.12200222,62538.0,62537.0,0.079972]
[1728348428580,0.3608,62542.0,62541.0,0.079967]
[1728348428779,0.3618,62542.0,62541.0,0.080967]
[1728348428982,0.001,62542.0,62541.0,0.080967]
[1728348430081,0.002,62542.0,62541.0,0.197967]
[1728348430683,0.001,62542.0,62541.0,0.196967]
[1728348431482,0.002,62542.0,62541.0,0.197967]
[1728348433092,0.002,62542.0,62541.0,0.22676688]
[1728348434180,0.12400222,62542.0,62541.0,0.10976688]
[1728348434382,0.12400222,62542.0,62541.0,0.001]
[1728348434987,0.01995622,62542.0,62541.0,0.001]
[1728348435693,0.09992222,62542.0,62541.0,0.09590822]
[1728348435900,0.09992222,62542.0,62541.0,0.001]
[1728348436308,0.57960222,62542.0,62541.0,0.001]
[1728348436709,1.20900149,62542.0,62541.0,0.001]
[1728348437700,0.57960222,62542.0,62541.0,0.001]
[1728348437899,0.09992222,62542.0,62541.0,0.001]
[1728348439508,0.09992222,62542.0,62541.0,0.20201297]
[1728348439705,0.09992222,62542.0,62541.0,0.08010887]
[1728348440408,0.09992222,62542.0,62541.0,0.20201389]
[1728348441205,0.09992222,62542.0,62541.0,0.12290502]
[1728348441600,1.17960222,62542.0,62541.0,0.12290502]
[1728348442098,0.57960222,62542.0,62541.0,0.12290502]
[1728348442303,1.17960222,62542.0,62541.0,0.12290502]
[1728348443699,0.57960222,62542.0,62541.0,0.12290502]
[1728348443899,0.09992222,62542.0,62541.0,0.12290502]
[1728348444100,0.09992222,62542.0,62541.0,0.12290511]
[1728348444402,0.09992222,62542.0,62541.0,0.21781333]
[1728348445303,0.09992222,62542.0,62541.0,0.12290511]
[1728348445810,0.0438923,62542.0,62541.0,0.12290511]
[1728348446206,0.0438923,62542.0,62541.0,0.21792145]
[1728348446408,0.0438923,62542.0,62541.0,0.12290511]
[1728348447212,0.0438923,62542.0,62541.0,0.27128618]
[1728348450109,0.34865797,62543.0,62541.0,0.001]
[1728348450616,0.079966,62542.0,62541.0,0.001]
[1728348451115,0.079976,62534.0,62533.0,0.083677]
[1728348451310,0.620776,62534.0,62533.0,0.079977]
[1728348452114,0.3608,62534.0,62533.0,0.079977]
[1728348452317,0.3618,62534.0,62533.0,0.081977]
[1728348453911,0.3628,62534.0,62533.0,0.082977]
[1728348457521,0.442776,62534.0,62533.0,0.003]
[1728348457717,0.622776,62534.0,62533.0,0.003]
[1728348458114,0.4946968,62534.0,62533.0,0.6495198]
[1728348458419,0.4946968,62534.0,62533.0,0.44817529]
[1728348459617,0.4546711,62534.0,62533.0,0.44817529]
[1728348459824,0.1946951,62534.0,62533.0,0.44817529]
[1728348460022,0.02838993,62537.0,62533.0,0.57526201]
[1728348460218,0.079973,62537.0,62536.0,0.11120393]
[1728348460520,0.079973,62537.0,62536.0,0.44517529]
[1728348461318,0.079973,62537.0,62536.0,0.55640467]
[1728348461518,0.080973,62537.0,62536.0,0.55940467]
[1728348462223,0.080973,62537.0,62536.0,0.38453653]
[1728348462426,0.080973,62537.0,62536.0,0.55940064]
[1728348462622,0.081973,62537.0,62536.0,0.55940064]
[1728348462922,0.081973,62537.0,62536.0,0.44817126]
[1728348463420,0.081973,62537.0,62536.0,0.45017126]
[1728348463623,0.442773,62537.0,62536.0,0.45017126]
[1728348464314,0.442773,62537.0,62536.0,0.005]
[1728348464517,0.442773,62537.0,62536.0,0.45016499]
[1728348464826,0.442773,62537.0,62536.0,0.56149079]
[1728348465124,0.3628,62537.0,62536.0,0.005]
[1728348465924,0.442773,62537.0,62536.0,0.005]
[1728348467518,0.081973,62537.0,62536.0,0.005]
[1728348467724,0.442773,62537.0,62536.0,0.005]
[1728348468427,0.081973,62537.0,62536.0,0.005]
[1728348468726,0.442773,62537.0,62536.0,0.005]
[1728348470529,0.442773,62537.0,62536.0,0.084974]
[1728348471521,0.081973,62537.0,62536.0,0.084974]
[1728348471721,0.442773,62537.0,62536.0,0.084974]
[1728348471924,0.3628,62537.0,62536.0,0.084974]
[1728348473146,0.3628,62537.0,62536.0,0.35527426]
[1728348474526,0.3628,62537.0,62536.0,0.35527432]
[1728348475831,0.12,62538.0,62536.0,0.35527432]
[1728348476028,0.12,62538.0,62537.0,0.27030032]
[1728348476828,0.12,62538.0,62537.0,0.35027232]
[1728348477032,0.122,62538.0,62537.0,0.35227232]
[1728348477733,0.122,62538.0,62537.0,0.35427232]
[1728348478133,0.1539451,62538.0,62537.0,0.52912664]
[1728348479233,0.1539451,62538.0,62537.0,0.64053735]
[1728348479430,0.002,62538.0,62537.0,0.52912664]
[1728348479631,0.002,62538.0,62537.0,0.52912459]
[1728348479835,0.0037,62544.0,62543.0,0.079965]
[1728348480026,0.3608,62552.0,62543.0,1.20721988]
[1728348480231,0.3608,62552.0,62551.0,0.079954]
[1728348481129,0.3638,62552.0,62551.0,0.079954]
[1728348482139,0.003,62552.0,62551.0,0.142154]
[1728348482929,0.003,62552.0,62551.0,0.17163864]
[1728348483329,0.003,62552.0,62551.0,0.142154]
[1728348483529,0.003,62552.0,62545.0,0.079962]
[1728348483739,0.259958,62549.0,62543.0,0.38922421]
[1728348483932,0.259958,62549.0,62546.0,0.07996]
[1728348485241,0.18,62549.0,62543.0,0.3618]
[1728348485439,0.18,62544.0,62543.0,0.001]
[1728348485642,0.259963,62544.0,62543.0,0.001]
[1728348486541,0.079966,62542.0,62536.0,0.10918824]
[1728348486837,0.18,62544.0,62539.0,0.07997]
[1728348487039,0.079965,62543.0,62539.0,0.07997]
[1728348487545,0.001,62544.0,62535.0,0.3608]
[1728348487746,0.001,62542.0,62541.0,0.079967]
[1728348488237,0.44164,62547.0,62541.0,0.27026731]
[1728348488442,0.001,62543.0,62542.0,0.20186242]
[1728348489649,0.001,62543.0,62542.0,0.20486242]
[1728348489849,0.079961,62546.0,62542.0,0.20486242]
[1728348490055,0.079961,62546.0,62543.0,0.21712949]
[1728348490342,0.079961,62546.0,62545.0,0.09523207]
[1728348490547,0.079961,62546.0,62545.0,0.21712949]
[1728348490746,0.079961,62546.0,62545.0,0.2171136]
[1728348491146,0.079961,62546.0,62545.0,0.12189742]
[1728348492047,0.079961,62546.0,62544.0,0.17517818]
[1728348492257,0.079961,62546.0,62545.0,0.12189411]
[1728348492644,0.079961,62546.0,62545.0,0.12289411]
[1728348492845,0.079961,62546.0,62545.0,0.12689439]
[1728348493045,0.440761,62546.0,62545.0,0.12689439]
[1728348493450,0.079961,62546.0,62545.0,0.12689847]
[1728348494057,0.079961,62546.0,62545.0,0.20626613]
[1728348494352,0.079961,62546.0,62545.0,0.20626857]
[1728348494555,0.440761,62546.0,62545.0,0.20626857]
[1728348494747,0.440761,62546.0,62545.0,0.005]
[1728348495852,0.079961,62546.0,62545.0,0.005]
[1728348496052,0.440761,62546.0,62545.0,0.005]
[1728348502655,0.079977,62536.0,62525.0,0.079986]
[1728348502958,0.079982,62530.0,62529.0,0.079981]
[1728348503258,0.18,62533.0,62529.0,0.35029928]
[1728348503447,0.07998,62531.0,62530.0,0.27031828]
[1728348503655,0.07998,62531.0,62530.0,0.35029928]
[1728348504359,0.07998,62531.0,62530.0,0.20190141]
[1728348504557,0.03995219,62531.0,62530.0,0.20190141]
[1728348505363,0.04095219,62531.0,62530.0,0.20390141]
[1728348505857,0.16491539,62533.0,62530.0,0.20390141]
[1728348506057,0.16491539,62533.0,62532.0,0.09533122]
[1728348506259,0.16491539,62533.0,62532.0,0.21725163]
[1728348506464,0.16491539,62533.0,62532.0,0.12192041]
[1728348506957,0.24489239,62533.0,62532.0,0.12192041]
[1728348507166,0.24589239,62533.0,62532.0,0.12192041]
[1728348507366,0.24689239,62533.0,62532.0,0.12192041]
[1728348507658,0.079979,62532.0,62531.0,0.09533122]
[1728348507864,0.079979,62532.0,62531.0,0.12192098]
[1728348508054,0.079979,62532.0,62531.0,0.21721211]
[1728348508256,0.079979,62532.0,62531.0,0.12192098]
[1728348509258,0.080979,62532.0,62531.0,0.12292098]
[1728348509860,0.081979,62532.0,62531.0,0.12692098]
[1728348512857,0.081979,62532.0,62531.0,0.12692468]
[1728348514358,0.080979,62532.0,62531.0,0.12292468]
[1728348514565,0.081979,62532.0,62531.0,0.12592468]
[1728348515167,0.081979,62532.0,62531.0,0.08338515]
[1728348515470,0.081979,62532.0,62531.0,0.06652323]
[1728348515775,0.081979,62532.0,62531.0,0.06752323]
[1728348516168,0.081979,62532.0,62531.0,0.004]
[1728348516366,0.081979,62532.0,62526.0,0.07938515]
[1728348516367,0.079981,62530.0,62526.0,0.07938515]
[1728348516569,0.5408,62527.0,62525.0,0.07938515]
[1728348516763,0.079986,62526.0,62525.0,0.07938515]
[1728348516964,0.079986,62526.0,62525.0,0.12194183]
[1728348517369,0.079986,62526.0,62525.0,0.20133463]
[1728348518268,0.079986,62526.0,62523.0,0.04763695]
[1728348518570,0.079989,62524.0,62523.0,0.04763695]
[1728348519767,0.07999,62523.0,62522.0,0.04763695]
[1728348519974,0.07999,62523.0,62522.0,0.079991]
[1728348520176,0.07999,62523.0,62522.0,0.12761618]
[1728348520679,0.07999,62523.0,62522.0,0.079991]
[1728348520864,0.08099,62523.0,62522.0,0.079991]